[Event "The Elitserien 2024/25: round 1 - 3"]
[Site "Scandic Infra City, Kanalvagen 10, Upplands Vasby, Sweden"]
[Date "2024.10.05"]
[Round "2.31"]
[White "Bellon Lopez, Juan Manuel"]
[Black "Sjodahl, Pontus"]
[Result "0-1"]
[TimeControl "90 minutes for 40 moves + 30 minutes for the rest of the game + 30 seconds per move from move one."]
[WhiteTitle "GM"]
[BlackTitle "IM"]
[WhiteFideId "2200031"]
[BlackFideId "1700537"]
[WhiteElo "2266"]
[BlackElo "2428"]

1. d4 {[%clk 01:25:23]} {[%emt 00:05:37]} d5 {[%clk 01:30:37]} {[%emt
00:00:22]} 2. Nf3 {[%clk 01:25:49]} {[%emt 00:00:05]} Nf6 {[%clk 01:30:49]}
{[%emt 00:00:17]} 3. e3 {[%clk 01:26:07]} {[%emt 00:00:13]} g6 {[%clk
01:27:31]} {[%emt 00:03:47]} 4. c4 {[%clk 01:25:06]} {[%emt 00:01:31]} Bg7
{[%clk 01:27:20]} {[%emt 00:00:42]} 5. Nc3 {[%clk 01:25:31]} {[%emt 00:00:05]}
O-O {[%clk 01:27:03]} {[%emt 00:00:47]} 6. Bd2 {[%clk 01:19:53]} {[%emt
00:06:08]} c5 {[%clk 01:17:34]} {[%emt 00:09:58]} 7. dxc5 {[%clk 01:15:03]}
{[%emt 00:05:21]} Na6 {[%clk 01:04:33]} {[%emt 00:13:30]} 8. cxd5 {[%clk
01:03:10]} {[%emt 00:12:24]} Nxc5 {[%clk 00:50:35]} {[%emt 00:14:28]} 9. Bc4
{[%clk 00:48:54]} {[%emt 00:14:45]} a6 {[%clk 00:44:00]} {[%emt 00:07:06]} 10.
b4 {[%clk 00:38:49]} {[%emt 00:10:37]} Nce4 {[%clk 00:39:15]} {[%emt 00:05:13]}
11. Rc1 {[%clk 00:34:47]} {[%emt 00:04:33]} b5 {[%clk 00:34:13]} {[%emt
00:05:32]} 12. Bb3 {[%clk 00:33:29]} {[%emt 00:01:49]} Bb7 {[%clk 00:32:59]}
{[%emt 00:01:44]} 13. O-O {[%clk 00:27:49]} {[%emt 00:06:09]} Qd6 {[%clk
00:25:57]} {[%emt 00:07:31]} 14. a3 {[%clk 00:18:55]} {[%emt 00:09:26]} Rfd8
{[%clk 00:20:56]} {[%emt 00:05:29]} 15. Qe2 {[%clk 00:16:48]} {[%emt 00:02:37]}
Nxd2 {[%clk 00:14:16]} {[%emt 00:07:10]} 16. Qxd2 {[%clk 00:17:07]} {[%emt
00:00:12]} Nxd5 {[%clk 00:13:31]} {[%emt 00:01:15]} 17. Ne4 {[%clk 00:13:05]}
{[%emt 00:04:32]} Qb8 {[%clk 00:11:54]} {[%emt 00:02:06]} 18. Nc5 {[%clk
00:12:34]} {[%emt 00:01:02]} e6 {[%clk 00:09:29]} {[%emt 00:02:55]} 19. Rfd1
{[%clk 00:06:32]} {[%emt 00:06:33]} Bf6 {[%clk 00:05:33]} {[%emt 00:04:26]} 20.
Nd4 {[%clk 00:03:50]} {[%emt 00:03:12]} Nb6 {[%clk 00:04:38]} {[%emt 00:01:24]}
21. Qa2 {[%clk 00:02:12]} {[%emt 00:02:08]} Bxd4 {[%clk 00:03:31]} {[%emt
00:01:37]} 22. Nxb7 {[%clk 00:01:56]} {[%emt 00:00:47]} Qxb7 {[%clk 00:03:42]}
{[%emt 00:00:18]} 23. exd4 {[%clk 00:01:41]} {[%emt 00:00:45]} Rd6 {[%clk
00:03:25]} {[%emt 00:00:47]} 24. Qe2 {[%clk 00:01:27]} {[%emt 00:00:44]} Rad8
{[%clk 00:03:16]} {[%emt 00:00:39]} 25. Qe5 {[%clk 00:01:25]} {[%emt 00:00:32]}
Qd7 {[%clk 00:01:58]} {[%emt 00:01:48]} 26. h3 {[%clk 00:01:46]} {[%emt
00:00:09]} Nd5 {[%clk 00:01:54]} {[%emt 00:00:35]} 27. Bxd5 {[%clk 00:00:38]}
{[%emt 00:01:38]} Rxd5 {[%clk 00:02:18]} {[%emt 00:00:05]} 28. Qf6 {[%clk
00:00:38]} {[%emt 00:00:30]} Rf5 {[%clk 00:01:45]} {[%emt 00:01:03]} 29. Qh4
{[%clk 00:00:57]} {[%emt 00:00:11]} Qd6 {[%clk 00:01:53]} {[%emt 00:00:23]} 30.
Rc5 {[%clk 00:00:57]} {[%emt 00:00:31]} Rf4 {[%clk 00:01:52]} {[%emt 00:00:30]}
31. Qg5 {[%clk 00:00:51]} {[%emt 00:00:35]} Rxd4 {[%clk 00:01:49]} {[%emt
00:00:33]} 32. Rxd4 {[%emt 00:00:05]} Qxd4 {[%clk 00:02:14]} {[%emt 00:00:03]}
33. Rc6 {[%clk 00:01:17]} {[%emt 00:00:30]} Rd5 {[%clk 00:01:34]} {[%emt
00:01:10]} 34. Qe7 {[%clk 00:01:08]} {[%emt 00:00:39]} Kg7 {[%clk 00:01:00]}
{[%emt 00:01:04]} 35. Rxe6 {[%clk 00:00:40]} {[%emt 00:01:00]} Rf5 {[%clk
00:00:40]} {[%emt 00:00:49]} 36. Re2 {[%clk 00:30:30]} {[%emt 00:00:40]} {White
flag fell on move 36.} 0-1

[Event "The Elitserien 2024/25: round 1 - 3"]
[Site "Scandic Infra City, Kanalvagen 10, Upplands Vasby, Sweden"]
[Date "2024.10.05"]
[Round "2.32"]
[White "Mauritsson, Sebastian"]
[Black "Ostlund, Joar"]
[Result "0-1"]
[TimeControl "90 minutes for 40 moves + 30 minutes for the rest of the game + 30 seconds per move from move one."]
[WhiteTitle "FM"]
[BlackTitle "FM"]
[WhiteFideId "1707892"]
[BlackFideId "1735020"]
[WhiteElo "2398"]
[BlackElo "2335"]

1. e4 {[%clk 01:29:10]} {[%emt 00:01:50]} e5 {[%clk 01:30:48]} {[%emt
00:00:12]} 2. Nf3 {[%clk 01:29:05]} {[%emt 00:00:36]} Nc6 {[%clk 01:31:02]}
{[%emt 00:00:16]} 3. d4 {[%clk 01:29:23]} {[%emt 00:00:12]} exd4 {[%clk
01:30:31]} {[%emt 00:01:02]} 4. Nxd4 {[%clk 01:29:47]} {[%emt 00:00:06]} Nf6
{[%clk 01:30:39]} {[%emt 00:00:21]} 5. Nxc6 {[%clk 01:29:37]} {[%emt 00:00:40]}
bxc6 {[%clk 01:30:56]} {[%emt 00:00:14]} 6. e5 {[%clk 01:29:57]} {[%emt
00:00:10]} Qe7 {[%clk 01:30:51]} {[%emt 00:00:33]} 7. Qe2 {[%clk 01:30:14]}
{[%emt 00:00:13]} Nd5 {[%clk 01:30:53]} {[%emt 00:00:28]} 8. h4 {[%clk
01:30:39]} {[%emt 00:00:06]} Qe6 {[%clk 01:28:02]} {[%emt 00:03:21]} 9. g3
{[%clk 01:30:52]} {[%emt 00:00:19]} d6 {[%clk 01:27:03]} {[%emt 00:01:28]} 10.
c4 {[%clk 01:30:49]} {[%emt 00:00:33]} Nb6 {[%clk 01:26:06]} {[%emt 00:01:26]}
11. Bg2 {[%clk 01:30:33]} {[%emt 00:00:47]} dxe5 {[%clk 01:23:13]} {[%emt
00:03:23]} 12. b3 {[%clk 01:31:01]} {[%emt 00:00:01]} Be7 {[%clk 01:19:54]}
{[%emt 00:03:48]} 13. Bb2 {[%clk 01:30:03]} {[%emt 00:01:29]} f6 {[%clk
01:17:59]} {[%emt 00:02:25]} 14. Nd2 {[%clk 01:28:26]} {[%emt 00:02:06]} O-O
{[%clk 01:16:17]} {[%emt 00:02:12]} 15. O-O {[%clk 01:28:13]} {[%emt 00:00:43]}
a5 {[%clk 01:12:23]} {[%emt 00:04:24]} 16. Rfe1 {[%clk 01:10:18]} {[%emt
00:18:27]} Re8 {[%clk 01:03:12]} {[%emt 00:09:40]} 17. Kh1 {[%clk 00:53:42]}
{[%emt 00:17:06]} a4 {[%clk 00:55:06]} {[%emt 00:08:35]} 18. f4 {[%clk
00:47:23]} {[%emt 00:06:49]} axb3 {[%clk 00:37:12]} {[%emt 00:18:24]} 19. axb3
{[%clk 00:44:32]} {[%emt 00:03:22]} Rxa1 {[%clk 00:37:36]} {[%emt 00:00:05]} 20.
Bxa1 {[%clk 00:43:42]} {[%emt 00:01:20]} Bb4 {[%clk 00:36:42]} {[%emt
00:01:24]} 21. fxe5 {[%clk 00:38:40]} {[%emt 00:05:34]} Qg4 {[%clk 00:20:10]}
{[%emt 00:17:01]} 22. Qf2 {[%clk 00:31:06]} {[%emt 00:08:04]} Bxd2 {[%clk
00:17:34]} {[%emt 00:03:06]} 23. Qxd2 {[%clk 00:31:14]} {[%emt 00:00:22]} Qxg3
{[%clk 00:17:30]} {[%emt 00:00:34]} 24. Bxc6 {[%clk 00:24:04]} {[%emt
00:07:41]} Qxh4+ {[%clk 00:16:51]} {[%emt 00:01:08]} 25. Kg1 {[%clk 00:21:56]}
{[%emt 00:02:38]} Qg3+ {[%clk 00:16:50]} {[%emt 00:00:32]} 26. Kh1 {[%clk
00:22:14]} {[%emt 00:00:12]} fxe5 {[%clk 00:08:39]} {[%emt 00:08:42]} 27. c5
{[%clk 00:10:45]} {[%emt 00:11:58]} Qh4+ {[%clk 00:06:23]} {[%emt 00:02:46]} 28.
Kg1 {[%clk 00:11:11]} {[%emt 00:00:04]} Rd8 {[%clk 00:05:14]} {[%emt 00:01:40]}
29. Qe3 {[%clk 00:07:54]} {[%emt 00:03:48]} Qg4+ {[%clk 00:03:42]} {[%emt
00:02:02]} 30. Kh2 {[%clk 00:07:26]} {[%emt 00:00:58]} Qh4+ {[%clk 00:02:55]}
{[%emt 00:01:17]} 31. Kg1 {[%clk 00:07:47]} {[%emt 00:00:08]} Qg4+ {[%clk
00:03:22]} {[%emt 00:00:03]} 32. Kh2 {[%clk 00:08:13]} {[%emt 00:00:04]} Nd5
{[%clk 00:02:28]} {[%emt 00:01:24]} 33. Qxe5 {[%clk 00:06:12]} {[%emt
00:02:31]} Nf6 {[%clk 00:00:41]} {[%emt 00:02:17]} 34. Qe3 {[%clk 00:05:46]}
{[%emt 00:00:56]} Qg6 {[%clk 00:00:35]} {[%emt 00:00:36]} 35. Bf3 {[%clk
00:03:05]} {[%emt 00:03:11]} Ng4+ {[%clk 00:00:43]} {[%emt 00:00:23]} 36. Bxg4
{[%clk 00:03:29]} {[%emt 00:00:05]} Bxg4 {[%clk 00:01:04]} {[%emt 00:00:09]} 37.
Bc3 {[%clk 00:00:44]} {[%emt 00:03:14]} Rf8 {[%clk 00:01:19]} {[%emt 00:00:15]}
38. Qe4 {[%clk 00:00:33]} {[%emt 00:00:42]} Rf2+ {[%clk 00:01:08]} {[%emt
00:00:41]} 39. Kg3 {[%clk 00:00:31]} {[%emt 00:00:32]} Bf5+ {[%clk 00:01:21]}
{[%emt 00:00:17]} 0-1

[Event "The Elitserien 2024/25: round 1 - 3"]
[Site "Scandic Infra City, Kanalvagen 10, Upplands Vasby, Sweden"]
[Date "2024.10.05"]
[Round "2.33"]
[White "Hammer, Jon Ludvig"]
[Black "Lyrberg, Patrik"]
[Result "1-0"]
[TimeControl "90 minutes for 40 moves + 30 minutes for the rest of the game + 30 seconds per move from move one."]
[WhiteTitle "GM"]
[BlackTitle "IM"]
[WhiteFideId "1503707"]
[BlackFideId "1701975"]
[WhiteElo "2595"]
[BlackElo "2436"]

1. d4 {[%clk 01:29:21]} {[%emt 00:01:39]} Nf6 {[%clk 01:30:50]} {[%emt
00:00:10]} 2. c4 {[%clk 01:29:43]} {[%emt 00:00:09]} e6 {[%clk 01:30:48]}
{[%emt 00:00:31]} 3. Nc3 {[%clk 01:29:56]} {[%emt 00:00:17]} Bb4 {[%clk
01:31:03]} {[%emt 00:00:16]} 4. e3 {[%clk 01:30:17]} {[%emt 00:00:08]} d5
{[%clk 01:29:21]} {[%emt 00:02:12]} 5. a3 {[%clk 01:28:30]} {[%emt 00:02:18]}
Bxc3+ {[%clk 01:24:39]} {[%emt 00:05:12]} 6. bxc3 {[%clk 01:26:28]} {[%emt
00:02:32]} Ne4 {[%clk 01:24:48]} {[%emt 00:00:20]} 7. Bd3 {[%clk 01:20:25]}
{[%emt 00:06:33]} Nxc3 {[%clk 01:20:29]} {[%emt 00:04:50]} 8. Qc2 {[%clk
01:18:10]} {[%emt 00:02:45]} Ne4 {[%clk 01:15:41]} {[%emt 00:05:17]} 9. cxd5
{[%clk 01:14:22]} {[%emt 00:04:18]} exd5 {[%clk 01:16:06]} {[%emt 00:00:05]} 10.
Bxe4 {[%clk 01:14:41]} {[%emt 00:00:11]} dxe4 {[%clk 01:16:32]} {[%emt
00:00:04]} 11. Qxe4+ {[%clk 01:15:00]} {[%emt 00:00:11]} Be6 {[%clk 01:16:18]}
{[%emt 00:00:45]} 12. Ne2 {[%clk 01:13:22]} {[%emt 00:02:07]} O-O {[%clk
01:14:04]} {[%emt 00:02:44]} 13. Qxb7 {[%clk 01:03:35]} {[%emt 00:10:17]} Bd5
{[%clk 01:13:10]} {[%emt 00:01:24]} 14. Qb1 {[%clk 01:00:55]} {[%emt 00:03:09]}
Bxg2 {[%clk 01:10:57]} {[%emt 00:02:45]} 15. Rg1 {[%clk 01:00:54]} {[%emt
00:00:30]} Bf3 {[%clk 01:11:22]} {[%emt 00:00:05]} 16. Qf5 {[%clk 00:50:45]}
{[%emt 00:10:38]} Qd5 {[%clk 01:01:48]} {[%emt 00:10:04]} 17. Qxd5 {[%clk
00:48:04]} {[%emt 00:03:12]} Bxd5 {[%clk 01:02:13]} {[%emt 00:00:05]} 18. Nc3
{[%clk 00:46:52]} {[%emt 00:01:42]} c6 {[%clk 01:01:15]} {[%emt 00:01:28]} 19.
e4 {[%clk 00:35:45]} {[%emt 00:11:37]} Re8 {[%clk 00:45:41]} {[%emt 00:16:03]}
20. f3 {[%clk 00:35:13]} {[%emt 00:01:01]} Nd7 {[%clk 00:38:55]} {[%emt
00:07:17]} 21. Bh6 {[%clk 00:33:30]} {[%emt 00:02:12]} g6 {[%clk 00:39:20]}
{[%emt 00:00:05]} 22. Kf2 {[%clk 00:33:52]} {[%emt 00:00:09]} Be6 {[%clk
00:36:52]} {[%emt 00:02:58]} 23. Bf4 {[%clk 00:30:04]} {[%emt 00:04:18]} f5
{[%clk 00:36:40]} {[%emt 00:00:42]} 24. Bd6 {[%clk 00:25:34]} {[%emt 00:05:00]}
fxe4 {[%clk 00:36:48]} {[%emt 00:00:22]} 25. fxe4 {[%clk 00:25:58]} {[%emt
00:00:06]} Nb6 {[%clk 00:34:55]} {[%emt 00:02:22]} 26. Rab1 {[%clk 00:25:41]}
{[%emt 00:00:47]} Nc4 {[%clk 00:35:11]} {[%emt 00:00:14]} 27. Bc5 {[%clk
00:25:14]} {[%emt 00:00:57]} a5 {[%clk 00:31:01]} {[%emt 00:04:40]} 28. Rb7
{[%clk 00:24:43]} {[%emt 00:01:00]} Bc8 {[%clk 00:28:32]} {[%emt 00:03:01]} 29.
Rc7 {[%clk 00:24:26]} {[%emt 00:00:47]} Ba6 {[%clk 00:17:05]} {[%emt 00:11:56]}
30. Rxc6 {[%clk 00:20:42]} {[%emt 00:04:14]} Bb7 {[%clk 00:17:26]} {[%emt
00:00:09]} 31. Rc7 {[%clk 00:20:33]} {[%emt 00:00:40]} Bxe4 {[%clk 00:16:50]}
{[%emt 00:01:06]} 32. Re1 {[%clk 00:20:30]} {[%emt 00:00:33]} Bd3 {[%clk
00:10:11]} {[%emt 00:07:09]} 33. Nd5 {[%clk 00:20:42]} {[%emt 00:00:18]} Rxe1
{[%clk 00:10:38]} {[%emt 00:00:04]} 34. Nf6+ {[%clk 00:21:03]} {[%emt
00:00:09]} Kh8 {[%clk 00:11:05]} {[%emt 00:00:03]} 35. Rxh7# {[%emt 00:00:08]}
1-0

[Event "The Elitserien 2024/25: round 1 - 3"]
[Site "Scandic Infra City, Kanalvagen 10, Upplands Vasby, Sweden"]
[Date "2024.10.05"]
[Round "2.34"]
[White "Cicak, Slavko"]
[Black "Neiksans, Arturs"]
[Result "1/2-1/2"]
[TimeControl "90 minutes for 40 moves + 30 minutes for the rest of the game + 30 seconds per move from move one."]
[WhiteTitle "GM"]
[BlackTitle "GM"]
[WhiteFideId "1700588"]
[BlackFideId "11601388"]
[WhiteElo "2499"]
[BlackElo "2571"]

1. Nf3 {[%clk 01:30:31]} {[%emt 00:00:28]} d5 {[%clk 01:30:33]} {[%emt
00:00:28]} 2. e3 {[%clk 01:29:58]} {[%emt 00:01:03]} Nf6 {[%clk 01:29:46]}
{[%emt 00:01:18]} 3. b3 {[%clk 01:29:41]} {[%emt 00:00:47]} Bf5 {[%clk
01:28:42]} {[%emt 00:01:33]} 4. Ba3 {[%clk 01:26:09]} {[%emt 00:04:02]} Nbd7
{[%clk 01:26:15]} {[%emt 00:02:58]} 5. c4 {[%clk 01:23:58]} {[%emt 00:02:39]}
e6 {[%clk 01:21:39]} {[%emt 00:05:07]} 6. Bxf8 {[%clk 01:23:55]} {[%emt
00:00:33]} Nxf8 {[%clk 01:22:00]} {[%emt 00:00:09]} 7. Be2 {[%clk 01:22:12]}
{[%emt 00:02:14]} N8d7 {[%clk 01:19:37]} {[%emt 00:02:53]} 8. Nh4 {[%clk
01:18:41]} {[%emt 00:04:01]} Bxb1 {[%clk 01:18:10]} {[%emt 00:01:57]} 9. Rxb1
{[%clk 01:18:54]} {[%emt 00:00:17]} O-O {[%clk 01:17:45]} {[%emt 00:00:54]} 10.
cxd5 {[%clk 01:17:42]} {[%emt 00:01:43]} exd5 {[%clk 01:12:16]} {[%emt
00:05:58]} 11. b4 {[%clk 01:14:20]} {[%emt 00:03:53]} c6 {[%clk 01:05:27]}
{[%emt 00:07:19]} 12. Nf3 {[%clk 01:12:44]} {[%emt 00:02:05]} Ne4 {[%clk
01:04:29]} {[%emt 00:01:27]} 13. Qc2 {[%clk 01:11:48]} {[%emt 00:01:27]} Qe7
{[%clk 00:57:58]} {[%emt 00:07:01]} 14. O-O {[%clk 01:09:55]} {[%emt 00:02:24]}
a6 {[%clk 00:55:56]} {[%emt 00:02:31]} 15. a4 {[%clk 01:09:27]} {[%emt
00:00:57]} Rac8 {[%clk 00:55:28]} {[%emt 00:00:58]} 16. Rfc1 {[%clk 01:08:41]}
{[%emt 00:01:16]} g6 {[%clk 00:53:17]} {[%emt 00:02:42]} 17. Qb2 {[%clk
01:02:39]} {[%emt 00:06:31]} Rfe8 {[%clk 00:49:01]} {[%emt 00:04:47]} 18. Rc2
{[%clk 01:01:32]} {[%emt 00:01:37]} Nd6 {[%clk 00:37:52]} {[%emt 00:11:39]} 19.
Rbc1 {[%clk 00:59:17]} {[%emt 00:02:45]} Nb6 {[%clk 00:36:35]} {[%emt
00:01:46]} 20. Qb3 {[%clk 00:57:17]} {[%emt 00:02:31]} Nbc4 {[%clk 00:33:53]}
{[%emt 00:03:11]} 21. Bf1 {[%clk 00:50:32]} {[%emt 00:07:15]} Rc7 {[%clk
00:24:04]} {[%emt 00:10:19]} 22. d3 {[%clk 00:49:08]} {[%emt 00:01:55]} Nb6
{[%clk 00:23:43]} {[%emt 00:00:51]} 23. b5 {[%clk 00:37:56]} {[%emt 00:11:42]}
axb5 {[%clk 00:22:26]} {[%emt 00:01:45]} 24. axb5 {[%clk 00:38:18]} {[%emt
00:00:07]} Nxb5 {[%clk 00:21:53]} {[%emt 00:01:03]} 25. d4 {[%clk 00:35:35]}
{[%emt 00:03:14]} Rec8 {[%clk 00:17:24]} {[%emt 00:04:59]} 26. Ne1 {[%clk
00:29:38]} {[%emt 00:06:27]} Kg7 {[%clk 00:08:24]} {[%emt 00:09:30]} 27. g3
{[%clk 00:28:02]} {[%emt 00:02:06]} Nc4 {[%clk 00:03:14]} {[%emt 00:05:39]} 28.
Bxc4 {[%clk 00:28:23]} {[%emt 00:00:09]} dxc4 {[%clk 00:03:41]} {[%emt
00:00:04]} 29. Rxc4 {[%clk 00:28:41]} {[%emt 00:00:11]} Nd6 {[%clk 00:04:06]}
{[%emt 00:00:05]} 30. Rc5 {[%clk 00:28:28]} {[%emt 00:00:44]} Qf6 {[%clk
00:03:09]} {[%emt 00:01:28]} 1/2-1/2

[Event "The Elitserien 2024/25: round 1 - 3"]
[Site "Scandic Infra City, Kanalvagen 10, Upplands Vasby, Sweden"]
[Date "2024.10.05"]
[Round "2.35"]
[White "Blomqvist, Erik"]
[Black "Von Bahr, Oskar"]
[Result "1-0"]
[TimeControl "90 minutes for 40 moves + 30 minutes for the rest of the game + 30 seconds per move from move one."]
[WhiteTitle "GM"]
[BlackTitle "IM"]
[WhiteFideId "1709437"]
[BlackFideId "1703250"]
[WhiteElo "2491"]
[BlackElo "2370"]

1. e4 {[%clk 01:30:52]} {[%emt 00:00:06]} e5 {[%clk 01:30:54]} {[%emt
00:00:07]} 2. Nf3 {[%clk 01:31:10]} {[%emt 00:00:10]} Nc6 {[%clk 01:31:21]}
{[%emt 00:00:04]} 3. Bb5 {[%clk 01:31:25]} {[%emt 00:00:15]} a6 {[%clk
01:31:41]} {[%emt 00:00:10]} 4. Ba4 {[%clk 01:31:44]} {[%emt 00:00:11]} Nf6
{[%clk 01:32:06]} {[%emt 00:00:06]} 5. O-O {[%clk 01:32:02]} {[%emt 00:00:10]}
Be7 {[%clk 01:32:13]} {[%emt 00:00:24]} 6. Re1 {[%clk 01:31:44]} {[%emt
00:00:48]} b5 {[%clk 01:31:50]} {[%emt 00:00:54]} 7. Bb3 {[%clk 01:32:05]}
{[%emt 00:00:08]} O-O {[%clk 01:32:10]} {[%emt 00:00:10]} 8. a4 {[%clk
01:32:08]} {[%emt 00:00:28]} b4 {[%clk 01:30:37]} {[%emt 00:02:04]} 9. a5
{[%clk 01:32:15]} {[%emt 00:00:21]} d6 {[%clk 01:29:05]} {[%emt 00:02:02]} 10.
c3 {[%clk 01:32:13]} {[%emt 00:00:31]} Rb8 {[%clk 01:22:11]} {[%emt 00:07:26]}
11. Bc4 {[%clk 01:30:57]} {[%emt 00:01:45]} bxc3 {[%clk 01:18:01]} {[%emt
00:04:41]} 12. dxc3 {[%clk 01:30:07]} {[%emt 00:01:19]} Be6 {[%clk 01:07:41]}
{[%emt 00:10:51]} 13. Bxa6 {[%clk 01:23:41]} {[%emt 00:06:56]} Nd7 {[%clk
01:00:48]} {[%emt 00:07:23]} 14. b4 {[%clk 01:22:23]} {[%emt 00:01:47]} Bf6
{[%clk 00:50:07]} {[%emt 00:11:12]} 15. Na3 {[%clk 00:58:58]} {[%emt 00:23:54]}
Ne7 {[%clk 00:47:30]} {[%emt 00:03:08]} 16. Ng5 {[%clk 00:58:40]} {[%emt
00:00:47]} Bxg5 {[%clk 00:44:55]} {[%emt 00:03:07]} 17. Bxg5 {[%clk 00:59:03]}
{[%emt 00:00:06]} f6 {[%clk 00:44:51]} {[%emt 00:00:35]} 18. Be3 {[%clk
00:57:13]} {[%emt 00:02:18]} f5 {[%clk 00:43:34]} {[%emt 00:01:47]} 19. exf5
{[%clk 00:54:50]} {[%emt 00:02:54]} Nxf5 {[%clk 00:43:21]} {[%emt 00:00:43]} 20.
Bc4 {[%clk 00:52:10]} {[%emt 00:03:10]} Bxc4 {[%clk 00:41:27]} {[%emt
00:02:25]} 21. Nxc4 {[%clk 00:52:33]} {[%emt 00:00:06]} Qh4 {[%clk 00:41:36]}
{[%emt 00:00:22]} 22. Qe2 {[%clk 00:43:03]} {[%emt 00:09:59]} Nf6 {[%clk
00:38:16]} {[%emt 00:03:50]} 23. f3 {[%clk 00:37:09]} {[%emt 00:06:25]} Rbe8
{[%clk 00:35:43]} {[%emt 00:03:03]} 24. Bf2 {[%clk 00:35:57]} {[%emt 00:01:41]}
Qg5 {[%clk 00:30:37]} {[%emt 00:05:35]} 25. Ne3 {[%clk 00:35:43]} {[%emt
00:00:45]} e4 {[%clk 00:24:06]} {[%emt 00:07:01]} 26. Nxf5 {[%clk 00:32:58]}
{[%emt 00:03:15]} Qxf5 {[%clk 00:24:26]} {[%emt 00:00:11]} 27. a6 {[%clk
00:30:48]} {[%emt 00:02:40]} Kh8 {[%clk 00:20:17]} {[%emt 00:04:38]} 28. a7
{[%clk 00:29:10]} {[%emt 00:02:09]} Qd5 {[%clk 00:19:02]} {[%emt 00:01:44]} 29.
Bd4 {[%clk 00:28:24]} {[%emt 00:01:15]} Qc6 {[%clk 00:16:37]} {[%emt 00:02:56]}
30. fxe4 {[%clk 00:22:18]} {[%emt 00:06:37]} Rxe4 {[%clk 00:13:12]} {[%emt
00:03:55]} 31. Qf3 {[%clk 00:21:43]} {[%emt 00:01:04]} d5 {[%clk 00:12:28]}
{[%emt 00:01:14]} 32. Rxe4 {[%clk 00:21:09]} {[%emt 00:01:04]} dxe4 {[%clk
00:12:51]} {[%emt 00:00:07]} 33. Qf5 {[%clk 00:21:14]} {[%emt 00:00:24]} Ra8
{[%clk 00:10:40]} {[%emt 00:02:43]} 34. h3 {[%clk 00:18:19]} {[%emt 00:03:24]}
Kg8 {[%clk 00:10:53]} {[%emt 00:00:18]} 35. Ra5 {[%clk 00:17:14]} {[%emt
00:01:34]} Re8 {[%clk 00:07:41]} {[%emt 00:03:42]} 36. Rc5 {[%clk 00:17:14]}
{[%emt 00:00:28]} Qd6 {[%clk 00:05:12]} {[%emt 00:03:01]} 37. Re5 {[%clk
00:16:25]} {[%emt 00:01:18]} Ra8 {[%clk 00:04:33]} {[%emt 00:01:10]} 38. Re6
{[%clk 00:16:02]} {[%emt 00:00:53]} Qd8 {[%clk 00:04:47]} {[%emt 00:00:16]} 39.
g4 {[%clk 00:12:41]} {[%emt 00:03:50]} 1-0